Cogmind - Beta 16 @@@ ROGUE MODE // 2025.10.28 @ 16:10:58 Player: ChromeKnight Result: Destroyed by H-77 Assassin with Coil Gun Performance ------------- Evolutions (6) 3000 Regions Visited (19) 3800 Robots Destroyed (107) 535 Value Destroyed (7818) 7818 Prototype IDs (3) 60 Alien Tech Used (0) 0 Bonus (7946) 7946 TOTAL SCORE: 23159 Bonus ------- High Alert Combat Kills 938 Follower Combat Kills 2308 Entered Garrisons 1200 Used RIF Installer 3500 Cogmind --------- Core Integrity 0/1150 Matter 60/300 Energy 99/100 System Corruption 27% Temperature Cool (0) Movement Core (50) Location -4/Armory Parts ------- > --- POWER (1) -------- (None) > --- PROPULSION (4) --- (None) > --- UTILITY (12) ----- (None) > --- WEAPON (2) ------- (None) > --- INVENTORY (5) ---- Centrium Leg Linear Gravjet Linear Gravjet Enhanced Nova Cannon Improved Remote Datajack Peak State ------------ > --- POWER ------------ Reinforced Fission Core > --- PROPULSION ------- Biometal Heavy Treads Biometal Heavy Treads > --- UTILITY ---------- Advanced Cooling System Huge Storage Unit Energy Well Advanced Signal Interpreter Advanced Phase Shifter Graphene Brace Advanced EM Disruption Field Relay Coupler [Cutter] Relay Coupler [Grunt] Relay Coupler [Duelist] Relay Coupler [Specialist] Relay Coupler [Behemoth] > --- WEAPON ----------- Enhanced Quantum Rifle Enhanced Hardcell Cannon > --- INVENTORY -------- Centrium Leg Linear Gravjet Linear Gravjet Combat Linear Gravjet Advanced Force Booster Relay Coupler [Grunt] Enhanced Quantum Rifle Enhanced Nova Cannon Improved Remote Datajack [Rating: 126] Favorites ----------- Power Light Quantum Reactor Engine Light Ion Engine Power Core Light Nuclear Core Reactor Light Quantum Reactor Propulsion Centrium Leg Treads Light Treads Leg Centrium Leg Hover Unit Gravmag System Flight Unit Cesium-ion Thruster Utility Relay Coupler [Grunt] Device Graphene Brace Storage Energy Well Processor Improved Signal Interpreter Hackware Relay Coupler [Grunt] Protection Medium Armor Plating Weapon Heavy Flail Energy Gun Enhanced Quantum Rifle Energy Cannon Heavy Disruptor Cannon Ballistic Gun Heavy Machine Gun Ballistic Cannon Enhanced Hardcell Cannon Special Weapon Remote Datajack Impact Weapon Heavy Flail Slashing Weapon Ripper Special Melee Weapon Datajack Build | -11 -10 -9 -9 -9 -8 -8 -8 -8 -8 -7 -7 -6 -6 -5 -5 -4 -4 -4 -4 ------- Run | Yrd Mat Mat Min Exi Min Mat Gar Mat Gar Fac Gar Fac Gar Fac Gar Fac Gar Fac Arm Slots Evolved 12 | . . 2 . . . 2 . . . 2 . 2 . 2 . 2 . . . Power . | . . . . . . . . . . . . . . . . . . . . Propulsion 2 | . . . . . . 1 . . . . . 1 . . . . . . . Utility 10 | . . 2 . . . 1 . . . 2 . 1 . 2 . 2 . . . Weapon . | . . . . . . . . . . . . . . . . . . . . Parts Attached 197 | 4 1 4 7 . . 3 22 1 19 . 27 8 21 7 23 2 33 1 14 Power 15 | 1 . . . . . . 3 . 2 . 2 1 2 . 1 . 2 . 1 Engine 6 | 1 . . . . . . 2 . . . 1 1 1 . . . . . . Core 6 | . . . . . . . 1 . 2 . . . 1 . . . 1 . 1 Reactor 3 | . . . . . . . . . . . 1 . . . 1 . 1 . . Propulsion 47 | 2 . . 2 . . 1 7 . 6 . 5 3 7 3 3 . 6 . 2 Treads 7 | 2 . . 2 . . 1 . . . . . . . . . . . . 2 Leg 19 | . . . . . . . . . . . 4 3 4 . 2 . 6 . . Wheel . | . . . . . . . . . . . . . . . . . . . . Hover 4 | . . . . . . . . . 3 . 1 . . . . . . . . Flight 17 | . . . . . . . 7 . 3 . . . 3 3 1 . . . . Utility 106 | 1 1 4 4 . . 2 10 1 9 . 15 3 10 2 15 2 20 1 6 Device 10 | . . . . . . . 3 . . . 1 1 1 . . 1 1 . 2 Storage 4 | 1 . . . . . . . . . . . . . . . . 2 1 . Processor 12 | . . . . . . 1 . . . . 5 . 1 1 2 1 . . 1 Hackware 52 | . . . . . . . 2 . 6 . 6 2 7 1 11 . 14 . 3 Protection 28 | . 1 4 4 . . 1 5 1 3 . 3 . 1 . 2 . 3 . . Artifact . | . . . . . . . . . . . . . . . . . . . . Weapon 29 | . . . 1 . . . 2 . 2 . 5 1 2 2 4 . 5 . 5 Energy Gun 2 | . . . . . . . . . . . . . . . . . 1 . 1 Energy Cannon 4 | . . . . . . . . . . . . . . . 1 . 2 . 1 Ballistic Gun 6 | . . . . . . . . . . . 3 . 1 1 . . . . 1 Ballistic Cannon 4 | . . . . . . . . . . . . . . . 1 . 2 . 1 Launcher . | . . . . . . . . . . . . . . . . . . . . Special Weapon 7 | . . . . . . . . . 1 . . 1 1 1 2 . . . 1 Impact Weapon 4 | . . . 1 . . . 1 . . . 2 . . . . . . . . Slashing Weapon 1 | . . . . . . . 1 . . . . . . . . . . . . Piercing Weapon . | . . . . . . . . . . . . . . . . . . . . Special Melee Weapon 1 | . . . . . . . . . 1 . . . . . . . . . . Unidentified Prototypes 3 | . . . . . . . . . . . . . . 1 . . . . 2 Corrupted Parts 1 | . . . . . . . . . . . . . 1 . . . . . . System Corruption 7 | . . . . . . . . . . . . . 7 . . . . . . Parts Lost 88 | . . 4 . . 1 . 10 . 8 8 13 2 15 2 2 . 8 7 8 Power 7 | . . . . . . . . . 1 1 1 . 2 . . . 1 1 . Propulsion 26 | . . . . . . . 4 . 5 3 1 2 5 1 2 . . 1 2 Utility 45 | . . 4 . . 1 . 6 . 2 3 9 . 5 1 . . 6 3 5 Weapon 10 | . . . . . . . . . . 1 2 . 3 . . . 1 2 1 Highest Loss Streak 8 | . . 4 . . 1 . 5 . 2 8 8 1 6 2 1 . 3 4 3 To Critical Strikes 1 | . . . . . . . . . . . 1 . . . . . . . . Average Backups 4 | . 2 4 4 5 5 4 3 5 4 3 4 4 4 3 4 5 4 7 10 Power . | . . . . . . . . . . 1 . . . . . . . . . Propulsion 1 | . . . . 1 1 . . 1 . . 1 . . . 2 4 1 2 4 Utility 2 | . 2 4 3 3 3 3 1 4 3 2 2 1 2 3 1 . 2 4 3 Weapon . | . . . 1 1 1 1 . . . . . 1 1 . . 1 1 . 2 Tool/Special . | . . . . . . . . . . . . . . . . . . . . Unused Backups 30 | . 2 4 . . . . 3 2 1 . 3 2 1 . . . 5 . 7 Power 2 | . . . . . . . 1 . . . . 1 . . . . . . . Propulsion 10 | . . . . . . . . . 1 . 3 . . . . . 2 . 4 Utility 13 | . 2 4 . . . . 2 2 . . . . 1 . . . . . 2 Weapon 5 | . . . . . . . . . . . . 1 . . . . 3 . 1 Tool/Special . | . . . . . . . . . . . . . . . . . . . . Average Slot Usage (%) 77 | . 49 37 36 77 71 74 69 100 93 86 69 92 79 52 78 84 90 84 75 Engine 1 | . 10 . . . . . 3 9 2 . 1 2 3 . . . . . . Core 1 | . . . . . . . 2 . 5 5 . . 2 . . . 1 . 2 Reactor 1 | . . . . . . . . . . . 3 3 . . 2 5 3 2 . Treads 3 | . 21 . 10 22 22 26 5 . . . . . . . . . . . 4 Leg 6 | . . . . . . . . . . . 10 20 12 . 6 10 16 12 8 Hover 1 | . . . . . . . . . 7 18 3 . . . . . . . . Flight 6 | . . . . . . . 13 27 18 . . . 7 12 7 . . . . Device 4 | . . . . . . . 3 9 7 5 4 9 2 . . 4 7 5 8 Storage 1 | . 10 . . . . . . . . . . . . . . . 2 9 9 Processor 6 | . . . . . . 3 9 9 9 7 12 9 7 1 6 6 5 5 . Hackware 20 | . . . . . . . 1 18 19 29 11 31 30 29 39 36 37 35 35 Protection 10 | . 5 37 15 44 38 35 17 9 8 6 9 . 1 . 3 10 6 2 . Ballistic Gun 1 | . . . . . . . . . . . 2 11 6 . . . . . . Ballistic Cannon 1 | . . . . . . . . . . . . . . . 2 5 2 9 1 Special Weapon 1 | . . . . . . . . . 2 5 . . 3 5 6 5 1 . . Impact Weapon 4 | . . . 10 11 11 9 11 9 3 5 7 . . . . . . . . Slashing Weapon 1 | . . . . . . . 2 9 8 . . . . . . . . . . Peak Build Rating 126 | 4 7 9 13 13 13 18 34 36 39 40 63 62 55 43 108 120 120 120 126 Average Rating 52 | 2 4 7 6 13 12 16 19 35 33 34 38 52 40 32 80 115 112 99 97 On Entrance 38 | . 4 1 1 13 13 12 18 34 36 34 14 57 47 24 42 108 120 120 62 Avg Prop Armor Cover (%) 9 | . . . . . . . . . 8 . 12 . 9 . 8 . . . . Naked Turns 66 | . 30 22 4 . . . . . . . . . . . . . . . 10 Heaviest Build 134 | 8 15 28 23 23 23 27 27 15 17 14 26 25 22 6 46 47 56 134 131 Greatest Support 150 | 40 40 3 40 40 40 60 60 18 24 24 46 55 60 16 120 120 120 120 150 Greatest Overweight (x) 32 | . . 9 . . . . 7 . 1 1 1 2 2 . 1 . . 1 32 Average Overweight (x) . | . . 4 . . . . . . . . . . . . . . . . . Largest Inventory Capacity 25 | 8 8 5 5 5 5 5 5 5 5 5 5 5 5 5 5 5 5 25 25 Average Capacity 6 | 6 7 5 5 5 5 5 5 5 5 5 5 5 5 5 5 5 5 22 24 Most Carried 16 | . 7 5 5 5 5 5 5 5 5 5 5 5 5 5 5 5 5 9 16 Average Carried 4 | . 3 4 4 5 5 4 3 4 4 3 4 4 4 3 4 5 4 7 11 Final Capacity 25 | 8 5 5 5 5 5 5 5 5 5 5 5 5 5 5 5 5 5 25 5 Final Carried 9 | . 5 5 5 5 5 5 5 5 5 4 3 5 4 4 5 5 5 9 5 Class Distribution -------------------- 39% | Mutant 16% | Botlord-Mutant 13% | Scavenger-Sprinter 12% | Scavenger-Mutant 9% | Bothacker-Mutant 5% | Botlord-Sprinter Dominant Class ---------------- Mutant | -10/Materials Mutant | -9/Materials Mutant | -9/Mines Mutant | -9/Exiles Mutant | -8/Mines Mutant | -8/Materials Mutant | -8/Garrison Scavenger-Sprinter | -8/Materials Scavenger-Sprinter | -8/Garrison Bothacker-Mutant | -7/Factory Scavenger-Mutant | -7/Garrison Scavenger-Mutant | -6/Factory Bothacker-Mutant | -6/Garrison Botlord-Sprinter | -5/Factory Botlord-Mutant | -5/Garrison Botlord-Mutant | -4/Factory Mutant | -4/Garrison Mutant | -4/Factory Botlord-Mutant | -4/Armory Resources | -11 -10 -9 -9 -9 -8 -8 -8 -8 -8 -7 -7 -6 -6 -5 -5 -4 -4 -4 -4 ----------- Run | Yrd Mat Mat Min Exi Min Mat Gar Mat Gar Fac Gar Fac Gar Fac Gar Fac Gar Fac Arm Matter Collected 3981 | 209 20 . 86 . 4 30 215 10 235 20 386 366 551 83 487 55 822 227 175 Remotely . | . . . . . . . . . . . . . . . . . . . . Salvage Created 4421 | . 20 . 70 . 48 84 500 385 565 20 808 479 272 27 . . 871 97 175 Parts 169 | . 1 . 2 . 1 2 14 13 28 . 30 16 15 2 . . 31 5 9 Haulers Intercepted 4 | . . . . . . . . 3 . . . 1 . . . . . . . Recyclers Shooed 4 | . . . . . . . . . . . . 1 . 1 . 1 . 1 . Parts Field Recycled . | . . . . . . . . . . . . . . . . . . . . Retrieved Matter . | . . . . . . . . . . . . . . . . . . . . Parts Self-Destructed . | . . . . . . . . . . . . . . . . . . . . Prevented . | . . . . . . . . . . . . . . . . . . . . Parts Restored . | . . . . . . . . . . . . . . . . . . . . Kills | -11 -10 -9 -9 -9 -8 -8 -8 -8 -8 -7 -7 -6 -6 -5 -5 -4 -4 -4 -4 ------- Run | Yrd Mat Mat Min Exi Min Mat Gar Mat Gar Fac Gar Fac Gar Fac Gar Fac Gar Fac Arm Combat Hostiles Destroyed 92 | . 1 . 1 . 2 2 12 2 15 . 13 4 8 1 . . 21 7 3 Melee 32 | . 1 . 1 . . 1 5 2 14 . 8 . . . . . . . . Guns 15 | . . . . . . . . . . . 2 4 8 1 . . . . . Cannons 26 | . . . . . . . . . . . . . . . . . 17 7 2 Classes Destroyed 13 | . 1 . 2 . 1 1 . 3 1 . 1 2 . . . . 1 . . Worker 2 | . . . . . . . . . . . . 1 . . . . . 1 . Tunneler 1 | . . . 1 . . . . . . . . . . . . . . . . Hauler 4 | . . . . . . . . 3 . . . 1 . . . . . . . Recycler 2 | . . . . . . . . 1 . . . 1 . . . . . . . Watcher 6 | . . . . . . . . 4 . 1 . . . . . . . 1 . Swarmer 25 | . 1 . . . 1 . 2 2 5 . . . 4 1 . . 5 4 . Cutter 4 | . . . . . . . . . . . . . . . . . 4 . . Grunt 28 | . . . 1 . . . 5 . 5 . 6 2 3 . . . 6 . . Brawler 1 | . . . . . . . . . . . 1 . . . . . . . . Duelist 1 | . . . . . . . . . . . . 1 . . . . . . . Sentry 16 | . . . . . . 2 5 . 3 . 2 . . . . . 3 . 1 Hunter 7 | . . . . . 1 . . . . . 2 . . . . . 2 2 . Programmer 10 | . . . . . . . . . 2 . 2 1 1 . . . 1 1 2 Best Kill Streak 7 | . 1 . 1 . 1 1 3 3 4 1 3 4 2 1 . . 7 5 1 Combat Bots Only 7 | . 1 . 1 . 1 1 3 2 4 . 3 2 2 1 . . 7 5 1 Max Kills in Single Turn 1 | . 1 . 1 . 1 1 1 1 1 1 1 1 1 1 . . 1 1 1 Gunslinging . | . . . . . . . . . . . . . . . . . . . . Exploded . | . . . . . . . . . . . . . . . . . . . . Melee 1 | . 1 . 1 . . 1 1 1 1 . 1 . . . . . . . . Uniques/NPCs Destroyed . | . . . . . . . . . . . . . . . . . . . . Combat | -11 -10 -9 -9 -9 -8 -8 -8 -8 -8 -7 -7 -6 -6 -5 -5 -4 -4 -4 -4 -------- Run | Yrd Mat Mat Min Exi Min Mat Gar Mat Gar Fac Gar Fac Gar Fac Gar Fac Gar Fac Arm Hostile Shots Fired 1561 | . 49 113 3 . 28 25 104 11 80 26 208 28 177 19 29 3 248 147 263 Missed 487 | . 20 29 1 . 9 5 18 5 29 7 78 11 51 10 6 1 63 57 87 Deflected 13 | . . . . . . . . . . . . . . . . . 13 . . Hits 1074 | . 29 84 2 . 19 20 86 6 51 19 130 17 126 9 23 2 185 90 176 Melee 14 | . . . . . . . . . . . 4 . 3 . . . 7 . . Projectile 1060 | . 29 84 2 . 19 20 86 6 51 19 126 17 123 9 23 2 178 90 176 AOE 6 | . . . . . . . . . . . . . 2 . . . 4 . . Critical Strikes 47 | . . . . . . 1 4 . 5 . 8 . 4 1 2 . 9 4 9 Actively Blocked 21 | . . . . . . . . . . . . . . . . . 8 4 9 Part Disruptions 4 | . . . . . . . . . . . 1 1 1 . 1 . . . . Damage Taken 16512 | . 263 667 31 . 261 284 1284 94 648 643 1597 319 1684 170 460 37 2840 1801 3429 Core 3152 | . 241 167 31 . 13 27 124 37 102 250 317 86 308 106 186 . 233 289 635 Absorbed by Shields 998 | . . . . . . . . . . . . . 373 . 90 . 535 . . Redirected to Shielding 101 | . . . . . . . . . . 49 23 . 29 . . . . . . Ignored by Resistances 90 | . . . . . . . . . 20 . . 28 . . 8 3 31 . . Regen/Repaired (Parts) 157 | . . . . . . . . . . . . . 157 . . . . . . Core Remaining (%) 48 | 100 3 . . . 47 . . . 47 . 19 . 53 . 70 . . . . Volleys Fired 319 | . . . . . . . . . 3 6 18 41 59 12 34 7 92 31 16 Largest 2 | . . . . . . . . . 1 1 1 2 2 1 1 1 2 2 2 Hottest 185 | . . . . . . . . . 5 5 20 60 60 23 58 58 116 116 185 Shots Fired 403 | . . . . . . . . . 3 6 18 71 71 12 34 7 95 62 24 Gun 156 | . . . . . . . . . . . 18 62 65 5 . . . . 6 Cannon 171 | . . . . . . . . . . . . . . . 6 4 82 62 17 Launcher . | . . . . . . . . . . . . . . . . . . . . Special 76 | . . . . . . . . . 3 6 . 9 6 7 28 3 13 . 1 Kinetic 263 | . . . . . . . . . . . 18 62 65 5 6 4 39 62 2 Thermal 36 | . . . . . . . . . . . . . . . . . 15 . 21 Explosive . | . . . . . . . . . . . . . . . . . . . . Electromagnetic 28 | . . . . . . . . . . . . . . . . . 28 . . Robot Hit Streak 21 | . . . . . . . . . 2 3 14 11 9 5 21 7 15 6 7 Robot Miss Streak 5 | . . . . . . . . . 1 1 2 4 5 2 2 . 4 3 2 Penetration Max . | . . . . . . . . . . . . . . . . . . . . Secondary Targets 2 | . . . . . . . . . . . . . 2 . . . . . . Max Gunslinging Chain 1 | . . . . . . . . . . . . . 1 . . . . . . Shots Hit Robots 419 | . . . 4 . 8 15 35 12 39 5 54 47 45 9 27 5 67 31 16 Core Hits 114 | . 2 . 1 . . 1 4 5 16 . 14 16 12 2 1 . 24 11 5 Critical Kills 5 | . . . . . . . . . . . 4 . . . . . 1 . . Critical Parts Destroyed 17 | . . . . . 1 1 6 4 2 . 2 . 1 . . . . . . Critical Strikes 37 | . . . . . 1 2 6 4 8 . 6 . 1 . . . 5 4 . Meltdown 1 | . . . . . . . . . . . . . . . . . 1 . . Destroy 1 | . . . . . . . . . . . . . 1 . . . . . . Blast 8 | . . . . . . . . . . . . . . . . . 4 4 . Smash 21 | . . . . . 1 2 6 4 2 . 6 . . . . . . . . Sever 6 | . . . . . . . . . 6 . . . . . . . . . . Melee Attacks 279 | . . . 4 . 10 17 97 17 78 2 54 . . . . . . . . Impact 206 | . . . 4 . 10 17 88 16 15 2 54 . . . . . . . . Slashing 73 | . . . . . . . 9 1 63 . . . . . . . . . . Piercing . | . . . . . . . . . . . . . . . . . . . . Sneak Attacks 8 | . . . 1 . . . 1 4 2 . . . . . . . . . . Combat Hostiles 1 | . . . . . . . 1 . . . . . . . . . . . . Follow-up Attacks 10 | . . . . . . . 5 1 3 . 1 . . . . . . . . Damage Inflicted 14046 | . 19 12 291 . 319 535 1483 946 1349 49 1844 1056 913 54 55 110 2449 1828 734 Guns 2340 | . . . . . . . . . . . 199 1051 912 54 . . . . 124 Cannons 4588 | . . . . . . . . . . . . . . . 55 110 2447 1454 522 Explosions 338 | . . . . . . . . . . . . . . . . . . 338 . Melee 6599 | . . . 291 . 319 535 1483 946 1349 34 1642 . . . . . . . . Ramming 181 | . 19 12 . . . . . . . 15 3 5 1 . . . 2 36 88 Kinetic 5332 | . . . . . . . . . . . 199 1051 912 54 55 110 1497 1454 . Thermal 1376 | . . . . . . . . . . . . . . . . . 392 338 646 Explosive . | . . . . . . . . . . . . . . . . . . . . Electromagnetic 558 | . . . . . . . . . . . . . . . . . 558 . . Impact 5423 | . . . 291 . 319 535 1385 946 271 34 1642 . . . . . . . . Slashing 1176 | . . . . . . . 98 . 1078 . . . . . . . . . . Piercing . | . . . . . . . . . . . . . . . . . . . . Highest Corruption 27 | . . . . . . . . . 3 1 20 3 18 . 3 . 4 5 27 Average Corruption 8 | . . . . . . . . . 2 1 12 2 9 . 2 . 3 4 16 Corruption Purged . | . . . . . . . . . . . . . . . . . . . . Corruption Blocked . | . . . . . . . . . . . . . . . . . . . . Effects 154 | . . . . . . . . . 6 . 33 8 38 . 2 . 29 6 32 Message Errors 35 | . . . . . . . . . . . 6 5 13 . . . 5 1 5 Matter Fused 39 | . . . . . . . . . 2 . 10 2 8 . 1 . 8 1 7 Heat Flow Errors 16 | . . . . . . . . . 2 . 3 . 3 . 1 . 2 1 4 Energy Discharges 15 | . . . . . . . . . . . 2 1 4 . . . 3 . 5 Parts Rejected 3 | . . . . . . . . . . . . . . . . . 1 1 1 Data Loss (minor) 18 | . . . . . . . . . 2 . 3 . 4 . . . 5 2 2 Data Loss (major) 9 | . . . . . . . . . . . 6 . 1 . . . . . 2 Misfires 5 | . . . . . . . . . . . . . . . . . 3 . 2 Alerts 3 | . . . . . . . . . . . 2 . . . . . 1 . . Misdirections 7 | . . . . . . . . . . . 1 . 2 . . . . . 4 Weapon Failures 4 | . . . . . . . . . . . . . 3 . . . 1 . . Overload Shots . | . . . . . . . . . . . . . . . . . . . . Overflow Damage 1718 | . . . 106 . 96 57 342 262 194 . 318 . . . . . 45 298 . Projectiles 137 | . . . . . . . . . . . . . . . . . 45 92 . Explosions 206 | . . . . . . . . . . . . . . . . . . 206 . Melee 1375 | . . . 106 . 96 57 342 262 194 . 318 . . . . . . . . Knockbacks 31 | . . . 1 . . . 3 1 1 1 1 . . . . 2 7 14 . Impact 8 | . . . 1 . . . 3 1 1 1 1 . . . . . . . . Kinetic 20 | . . . . . . . . . . . . . . . . 1 6 13 . Secondary 3 | . . . . . . . . . . . . . . . . 1 1 1 . Self-Inflicted Damage 137 | . 9 6 . . . . . . . 7 1 . . . . . . 114 . Shots 1 | . . . . . . . . . . . . . . . . . . 1 . Rammed 11 | . 4 1 . . . . . . . 3 1 . . . . . . . 2 Targets Rammed 28 | . 4 1 . . . . . . . 3 1 1 1 . . . 1 7 9 Kicked 17 | . . . . . . . . . . . . 1 1 . . . 1 7 7 Crushed . | . . . . . . . . . . . . . . . . . . . . Highest Temperature 268 | . . . . . . 14 18 . 256 26 268 16 256 . 110 . 209 154 155 Average Temperature 61 | . . . . . . 7 6 . 132 26 111 12 83 . 19 . 53 41 59 Received Heat Transfer 2130 | . 12 . 18 . . 99 585 . 90 . 429 99 148 21 60 9 362 108 90 Effects 1 | . . . . . . . . . . . 1 . . . . . . . . Interference 1 | . . . . . . . . . . . 1 . . . . . . . . Siege Activations . | . . . . . . . . . . . . . . . . . . . . Martial Activations . | . . . . . . . . . . . . . . . . . . . . Shielding Activations 2 | . . . . . . . . . . . . . . . . . 2 . . Total Turns 57 | . . . . . . . . . . . . . . . . . 57 . . Longest Duration 48 | . . . . . . . . . . . . . . . . . 48 . . Robots Disrupted 3 | . . . . . . . . . . . . . . . . . 3 . . Combat Hostiles 3 | . . . . . . . . . . . . . . . . . 3 . . Robots Corrupted 24 | . . . 1 . 2 1 7 3 1 . 6 . . . . . 3 . . Combat Hostiles 20 | . . . . . 2 1 7 . 1 . 6 . . . . . 3 . . Parts Fried 39 | . . . 2 . 1 1 9 6 3 . 8 . . . . . 9 . . Impact Corruptions 52 | . . . 5 . 3 4 14 8 5 . 13 . . . . . . . . Robots Melted 2 | . . . . . . . . . . . . . . . . . 1 . 1 Combat Hostiles 2 | . . . . . . . . . . . . . . . . . 1 . 1 Parts Melted 5 | . . . . . . . . . . . . . . . . . 2 . 3 Heat Transferred 1212 | . . . . . . . . . . . . . . . . . 407 250 555 Parts Sabotaged . | . . . . . . . . . . . . . . . . . . . . Parts Stolen . | . . . . . . . . . . . . . . . . . . . . Parts Stripped . | . . . . . . . . . . . . . . . . . . . . Power Chain Reactions . | . . . . . . . . . . . . . . . . . . . . Alert | -11 -10 -9 -9 -9 -8 -8 -8 -8 -8 -7 -7 -6 -6 -5 -5 -4 -4 -4 -4 ------- Run | Yrd Mat Mat Min Exi Min Mat Gar Mat Gar Fac Gar Fac Gar Fac Gar Fac Gar Fac Arm Maximum Alert Level 4 | . . . . . . . 3 2 3 2 2 1 3 1 4 3 4 3 1 Low Security (%) 26 | 100 100 100 100 . 100 100 48 . . . . . . 29 32 . . . 46 Level 1 22 | . . . . . . . 26 35 . 11 35 100 57 70 1 . . . 53 Level 2 30 | . . . . . . . 18 64 51 88 64 . 39 . 32 56 34 38 . Level 3 18 | . . . . . . . 6 . 47 . . . 3 . 17 43 57 61 . Level 4 2 | . . . . . . . . . . . . . . . 15 . 8 . . Level 5 . | . . . . . . . . . . . . . . . . . . . . High Security . | . . . . . . . . . . . . . . . . . . . . Max Security . | . . . . . . . . . . . . . . . . . . . . Peak Influence 1297 | . 35 15 35 . 45 30 769 586 1005 527 669 391 726 357 1297 745 1191 809 331 Initial 680 | . . 14 . . . . . 374 367 527 254 350 219 357 95 680 503 614 331 Average 442 | . 4 1 12 . 11 5 265 455 716 479 444 349 401 278 600 686 805 709 204 Influence Increases 7000 | . 45 15 50 . 75 90 989 382 788 7 585 201 712 80 1342 179 988 323 149 Destroy 0b10 Robot/C 3200 | . 20 . 20 . 40 40 420 180 300 . 360 100 360 40 480 80 560 140 60 Destroy 0b10 Robot/NC 110 | . . . 5 . . . . 45 . 5 20 15 . . 10 . . 10 . Destroy Leader 390 | . 10 . 10 . 20 20 20 64 30 2 40 22 20 . 40 10 30 32 20 Allied During Kill 792 | . . . . . . . 35 33 . . 27 5 70 1 458 85 78 . . Trap Triggered on 0b10 10 | . . . . . . . . . . . . . . 10 . . . . . Successful Hack 133 | . . . . . . . . . 28 . . 29 7 14 12 . 12 . 31 Disable Machine 120 | . . . . . . 15 15 15 . . . . 15 . 15 . . 45 . Anti-Garrison Action 1200 | . . . . . . . 350 . 200 . 100 . 100 . 200 . 250 . . Destroy Structure 325 | . . . . . . . 89 . 65 . 23 . 5 . 22 4 13 96 8 Partial Spotted 75 | . . . . . . . . 30 30 . . . . 15 . . . . . Lose Combat Pursuer 645 | . 15 15 15 . 15 15 60 15 135 . 15 30 135 . 105 . 45 . 30 Influence Decreases 6926 | . 10 50 50 . 75 90 220 585 349 648 280 557 344 624 182 757 536 817 752 Entered New Map 3718 | . . 21 . . . . . 395 199 478 110 319 94 324 42 617 216 557 346 Time Decay 1333 | . 10 24 50 . 75 90 . 130 . 70 . 198 . 90 . 100 . 170 326 Lost Part 835 | . . 5 . . . . 100 . 80 80 130 20 150 20 20 . 80 70 80 Lost Ally 890 | . . . . . . . 120 60 70 20 40 20 100 40 120 40 240 20 . Purge Threat 150 | . . . . . . . . . . . . . . 150 . . . . . Squads Dispatched 16 | . 1 1 . . . . . 3 . 1 . 3 . 1 . 1 . 3 2 Investigation 7 | . . 1 . . . . . 1 . 1 . 1 . 1 . 1 . . 1 Extermination 3 | . . . . . . . . . . . . 1 . . . . . 1 1 Reinforcement 1 | . 1 . . . . . . . . . . . . . . . . . . Assault 2 | . . . . . . . . . . . . . . . . . . 2 . Garrison 3 | . . . . . . . . 2 . . . 1 . . . . . . . Intercept . | . . . . . . . . . . . . . . . . . . . . Searches Triggered . | . . . . . . . . . . . . . . . . . . . . Construction Impeded . | . . . . . . . . . . . . . . . . . . . . Haulers Reinforced . | . . . . . . . . . . . . . . . . . . . . Active Scanning Responses . | . . . . . . . . . . . . . . . . . . . . Cargo Convoy Interrupts . | . . . . . . . . . . . . . . . . . . . . Stealth | -11 -10 -9 -9 -9 -8 -8 -8 -8 -8 -7 -7 -6 -6 -5 -5 -4 -4 -4 -4 --------- Run | Yrd Mat Mat Min Exi Min Mat Gar Mat Gar Fac Gar Fac Gar Fac Gar Fac Gar Fac Arm Distress Signals 12 | . 1 1 . . . 4 . 1 . . . . . . 4 . . . 1 Communications Jammed . | . . . . . . . . . . . . . . . . . . . . Distress Signals . | . . . . . . . . . . . . . . . . . . . . Times Spotted 302 | . 14 11 2 . 5 11 19 12 25 10 17 12 27 13 38 5 46 18 17 Peak Tracking Total 13 | . 11 10 2 . 4 4 4 4 4 8 3 4 8 7 6 3 8 8 13 Tactical Retreats 33 | . 1 1 1 . 1 1 3 1 5 . 1 2 7 . 4 . 3 . 2 Traps | -11 -10 -9 -9 -9 -8 -8 -8 -8 -8 -7 -7 -6 -6 -5 -5 -4 -4 -4 -4 ------- Run | Yrd Mat Mat Min Exi Min Mat Gar Mat Gar Fac Gar Fac Gar Fac Gar Fac Gar Fac Arm Traps Triggered 28 | . . 1 . . . . 8 . 4 . 2 . 1 . 5 1 5 . 1 Indirectly . | . . . . . . . . . . . . . . . . . . . . Trap Hack Attempts . | . . . . . . . . . . . . . . . . . . . . Triggered . | . . . . . . . . . . . . . . . . . . . . Disarmed . | . . . . . . . . . . . . . . . . . . . . Reprogrammed . | . . . . . . . . . . . . . . . . . . . . Reused . | . . . . . . . . . . . . . . . . . . . . Traps Extracted . | . . . . . . . . . . . . . . . . . . . . Installed . | . . . . . . . . . . . . . . . . . . . . Triggered 1 | . . . . . . . . . . . . . . 1 . . . . . Machines | -11 -10 -9 -9 -9 -8 -8 -8 -8 -8 -7 -7 -6 -6 -5 -5 -4 -4 -4 -4 ---------- Run | Yrd Mat Mat Min Exi Min Mat Gar Mat Gar Fac Gar Fac Gar Fac Gar Fac Gar Fac Arm Machines Disabled 29 | . . . . . . 1 4 1 4 . 2 . 2 . 6 . 5 4 . Max in Single Turn 2 | . . . . . . 1 1 . 1 . 1 . 1 . 1 . 1 2 . Garrison Relay 17 | . . . . . . . 3 . 4 . 2 . 1 . 4 . 3 . . Machines Repaired . | . . . . . . . . . . . . . . . . . . . . Machines Dismantled 2 | . . . . . . . . . . . . . . . 2 . . . . Machines Sabotaged . | . . . . . . . . . . . . . . . . . . . . Overloaded Fab Kills . | . . . . . . . . . . . . . . . . . . . . Hacking | -11 -10 -9 -9 -9 -8 -8 -8 -8 -8 -7 -7 -6 -6 -5 -5 -4 -4 -4 -4 --------- Run | Yrd Mat Mat Min Exi Min Mat Gar Mat Gar Fac Gar Fac Gar Fac Gar Fac Gar Fac Arm Machines Accessed 27 | . . . . . . 1 2 4 3 2 . 3 2 2 2 1 1 . 4 Terminals 16 | . . . . . . . 2 2 3 1 . 2 2 . 2 . 1 . 1 Fabricators 3 | . . . . . . . . . . . . . . 1 . . . . 2 Repair Stations 1 | . . . . . . . . . . . . . . . . . . . 1 Recycling Units . | . . . . . . . . . . . . . . . . . . . . Scanalyzers 1 | . . . . . . . . 1 . . . . . . . . . . . Garrison Access 6 | . . . . . . 1 . 1 . 1 . 1 . 1 . 1 . . . Total Hacks 59 | . . . . . . 1 3 8 6 5 . 8 8 4 4 3 2 . 7 Successful 26 | . . . . . . 1 2 6 2 1 . 4 1 2 2 1 1 . 3 Failed 33 | . . . . . . . 1 2 4 4 . 4 7 2 2 2 1 . 4 Catastrophic 10 | . . . . . . . . . 1 2 . 1 1 2 . . . . 3 Database Lockouts . | . . . . . . . . . . . . . . . . . . . . Manual 13 | . . . . . . . . 4 . 4 . 2 . 1 . 2 . . . Terminals 36 | . . . . . . . 3 4 6 3 . 5 8 . 4 . 2 . 1 Fabricators 6 | . . . . . . . . . . . . . . 2 . . . . 4 Repair Stations 2 | . . . . . . . . . . . . . . . . . . . 2 Recycling Units . | . . . . . . . . . . . . . . . . . . . . Scanalyzers 2 | . . . . . . . . 2 . . . . . . . . . . . Garrison Access 13 | . . . . . . 1 . 2 . 2 . 3 . 2 . 3 . . . Terminal Hacks 11 | . . . . . . . 2 1 2 . . 1 1 . 2 . 1 . 1 Robot Schematic 1 | . . . . . . . . . . . . 1 . . . . . . . Open Door 3 | . . . . . . . 1 . . . . . 1 . . . . . 1 Emergency Access Points 4 | . . . . . . . . 1 1 . . . . . 1 . 1 . . Garrison Registry 2 | . . . . . . . 1 . . . . . . . 1 . . . . Patrol Navigation 1 | . . . . . . . . . 1 . . . . . . . . . . Fabricator Hacks 3 | . . . . . . . . . . . . . . 1 . . . . 2 Load Schematic 1 | . . . . . . . . . . . . . . . . . . . 1 Build 2 | . . . . . . . . . . . . . . 1 . . . . 1 Repair Station Hacks . | . . . . . . . . . . . . . . . . . . . . Recycling Unit Hacks . | . . . . . . . . . . . . . . . . . . . . Scanalyzer 2 | . . . . . . . . 2 . . . . . . . . . . . Retrieve Study 2 | . . . . . . . . 2 . . . . . . . . . . . Garrison Access Hacks 6 | . . . . . . 1 . 1 . 1 . 1 . 1 . 1 . . . Unlock Access 6 | . . . . . . 1 . 1 . 1 . 1 . 1 . 1 . . . Unauthorized Hacks 4 | . . . . . . . . 2 . . . 2 . . . . . . . Terminals 1 | . . . . . . . . 1 . . . . . . . . . . . Assimilate 1 | . . . . . . . . 1 . . . . . . . . . . . Fabricators . | . . . . . . . . . . . . . . . . . . . . Repair Stations . | . . . . . . . . . . . . . . . . . . . . Recycling Units . | . . . . . . . . . . . . . . . . . . . . Scanalyzers . | . . . . . . . . . . . . . . . . . . . . Garrison Access 3 | . . . . . . . . 1 . . . 2 . . . . . . . Restock 1 | . . . . . . . . . . . . 1 . . . . . . . Reprogram 2 | . . . . . . . . 1 . . . 1 . . . . . . . Data Cores Recovered . | . . . . . . . . . . . . . . . . . . . . Used . | . . . . . . . . . . . . . . . . . . . . Hacking Detections 21 | . . . . . . . . 3 3 2 . 2 2 2 2 1 1 . 3 Full Trace Events 5 | . . . . . . . . . . 1 . . 1 1 . 1 . . 1 Feedback Events . | . . . . . . . . . . . . . . . . . . . . Feedback Blocked . | . . . . . . . . . . . . . . . . . . . . Robot Schematics Acquired 1 | . . . . . . . . . . . . 1 . . . . . . . Robots Built . | . . . . . . . . . . . . . . . . . . . . Authchips . | . . . . . . . . . . . . . . . . . . . . Time . | . . . . . . . . . . . . . . . . . . . . Total Robot Build Rating . | . . . . . . . . . . . . . . . . . . . . Part Schematics Acquired . | . . . . . . . . . . . . . . . . . . . . Parts Built 3 | . . . . . . . . . . . . . . 2 . . . . 1 Authchips . | . . . . . . . . . . . . . . . . . . . . Time 99 | . . . . . . . . . . . . . . 53 . . . . 46 Total Part Build Rating 21 | . . . . . . . . . . . . . . 12 . . . . 9 Part Studies Acquired 2 | . . . . . . . . 2 . . . . . . . . . . . Parts Repaired . | . . . . . . . . . . . . . . . . . . . . Time . | . . . . . . . . . . . . . . . . . . . . Parts Recycled . | . . . . . . . . . . . . . . . . . . . . Recycled Matter . | . . . . . . . . . . . . . . . . . . . . Retrieved Matter . | . . . . . . . . . . . . . . . . . . . . Retrieved Components . | . . . . . . . . . . . . . . . . . . . . Parts Scanalyzed . | . . . . . . . . . . . . . . . . . . . . Part Schematics Acquired . | . . . . . . . . . . . . . . . . . . . . Parts Damaged . | . . . . . . . . . . . . . . . . . . . . Bothacking | -11 -10 -9 -9 -9 -8 -8 -8 -8 -8 -7 -7 -6 -6 -5 -5 -4 -4 -4 -4 ------------ Run | Yrd Mat Mat Min Exi Min Mat Gar Mat Gar Fac Gar Fac Gar Fac Gar Fac Gar Fac Arm Used RIF Installer 7 | . . . . . . . 2 . 1 . 1 . 1 . 1 . 1 . . Hotswap 1 | . . . . . . . . . . . . . 1 . . . . . . Command Fork 1 | . . . . . . . . . . . . . . . 1 . . . . Patrol Navigation 1 | . . . . . . . 1 . . . . . . . . . . . . Structural Interface 1 | . . . . . . . . . . . 1 . . . . . . . . Program Shield 1 | . . . . . . . . . 1 . . . . . . . . . . Autooverride 1 | . . . . . . . . . . . . . . . . . 1 . . Robots Hacked 40 | . . . . . . . . . 2 2 . 6 2 3 14 2 8 1 . Non-combat 5 | . . . . . . . . . . 2 . 2 . 1 . . . . . Combat 35 | . . . . . . . . . 2 . . 4 2 2 14 2 8 1 . Autooverrided 1 | . . . . . . . . . . . . . . . . . . 1 . Robot Hacks Applied 43 | . . . . . . . . . 2 3 . 6 2 5 14 2 9 . . deconstruct_machine 1 | . . . . . . . . . . 1 . . . . . . . . . purge_threat 1 | . . . . . . . . . . . . . . 1 . . . . . reprogram_traps 1 | . . . . . . . . . . . . . . 1 . . . . . block_reporting 1 | . . . . . . . . . . . . . . 1 . . . . . map_route 1 | . . . . . . . . . . 1 . . . . . . . . . emergency_deploy 1 | . . . . . . . . . . . . . . . . 1 . . . reboot_propulsion 2 | . . . . . . . . . . . . . . . 2 . . . . overload_power 2 | . . . . . . . . . . 1 . . . . . . 1 . . disable_weapons 2 | . . . . . . . . . . . . . . . 2 . . . . reboot_system 8 | . . . . . . . . . 1 . . 1 1 . 2 . 3 . . overwrite_iff 5 | . . . . . . . . . . . . . 1 2 1 . 1 . . formatsys_low 2 | . . . . . . . . . . . . 2 . . . . . . . formatsys_high 16 | . . . . . . . . . 1 . . 3 . . 7 1 4 . . Relay Couplers Released 72 | . . . . . . . 13 . 16 . 7 3 5 . 17 . 11 . . Machine Destruction 69 | . . . . . . . 13 . 16 . 7 . 5 . 17 . 11 . . Programmers 3 | . . . . . . . . . . . . 3 . . . . . . . Attached 51 | . . . . . . . 2 . 6 . 6 2 7 . 11 . 14 . 3 Fabnet Peak Effective % . | . . . . . . . . . . . . . . . . . . . . Robots Rewired 18 | . . . . . . . 9 . . 1 . . 2 . 5 . 1 . . Allies Hacked . | . . . . . . . . . . . . . . . . . . . . Hacks Repelled . | . . . . . . . . . . . . . . . . . . . . Allies | -11 -10 -9 -9 -9 -8 -8 -8 -8 -8 -7 -7 -6 -6 -5 -5 -4 -4 -4 -4 -------- Run | Yrd Mat Mat Min Exi Min Mat Gar Mat Gar Fac Gar Fac Gar Fac Gar Fac Gar Fac Arm Total Allies 53 | . . . . . . . 11 2 1 1 2 6 5 2 14 1 7 1 . Largest Group 8 | . . . . . . . 8 5 3 1 2 5 7 2 7 8 6 1 . Highest-Rated Group 430 | . . . . . . . 140 99 45 15 175 111 235 24 403 430 322 47 . Highest-Rated Ally 99 | . . . . . . . 31 26 21 15 95 37 62 12 99 89 89 47 . Total Orders 28 | . . . . . . . . . 4 . . . 16 . 8 . . . . STAY 12 | . . . . . . . . . 2 . . . 6 . 4 . . . . FOLLOW 8 | . . . . . . . . . 2 . . . 2 . 4 . . . . GUARD 3 | . . . . . . . . . . . . . 3 . . . . . . AID 5 | . . . . . . . . . . . . . 5 . . . . . . Ally Attacks 394 | . . . . . . . 38 23 6 1 12 17 46 8 153 16 71 3 . Total Damage 10093 | . . . . . . . 556 490 66 13 707 316 951 107 4286 418 2104 79 . Kills 72 | . . . . . . . 9 8 . . 5 1 10 1 26 4 8 . . Allies Corrupted 1 | . . . . . . . . . . . 1 . . . . . . . . Allies Melted 1 | . . . . . . . . . . . . . . . 1 . . . . Intel | -11 -10 -9 -9 -9 -8 -8 -8 -8 -8 -7 -7 -6 -6 -5 -5 -4 -4 -4 -4 ------- Run | Yrd Mat Mat Min Exi Min Mat Gar Mat Gar Fac Gar Fac Gar Fac Gar Fac Gar Fac Arm Active Infowar (turns) 244 | . . . . . . . 1 . . 123 . . 120 . . . . . . Sensors 124 | . . . . . . . 1 . . 123 . . . . . . . . . IFF 120 | . . . . . . . . . . . . . 120 . . . . . . Robot Analysis Total . | . . . . . . . . . . . . . . . . . . . . Derelict Logs Recovered 1 | . . . 1 . . . . . . . . . . . . . . . . Drone Launches . | . . . . . . . . . . . . . . . . . . . . Drone Recoveries . | . . . . . . . . . . . . . . . . . . . . Exploration | -11 -10 -9 -9 -9 -8 -8 -8 -8 -8 -7 -7 -6 -6 -5 -5 -4 -4 -4 -4 ------------- Run | Yrd Mat Mat Min Exi Min Mat Gar Mat Gar Fac Gar Fac Gar Fac Gar Fac Gar Fac Arm Turns Passed 11563 | 63 124 241 154 220 293 381 2000 267 1172 143 1056 400 981 195 1127 216 1449 355 726 Spaces Moved 8026 | 40 106 73 133 138 132 112 1220 365 1304 228 589 213 679 269 880 136 912 140 357 Core 510 | 5 53 73 90 . . . 140 . . 53 74 . . . . . . . 22 Treads 858 | 35 53 . 43 138 132 112 197 . . . . . . . . . . . 148 Legs 2513 | . . . . . . . . . . . 300 213 241 . 384 136 912 140 187 Wheels . | . . . . . . . . . . . . . . . . . . . . Hover 915 | . . . . . . . . . 525 175 215 . . . . . . . . Flight 3230 | . . . . . . . 883 365 779 . . . 438 269 496 . . . . Fastest Speed 26 | 50 50 50 50 160 160 160 29 29 29 50 50 100 29 26 32 140 120 126 50 Average Speed 89 | 146 105 280 85 160 160 160 89 29 44 51 103 117 63 31 88 140 125 174 137 Slowest Speed 1650 | 160 160 500 160 160 160 160 400 29 120 120 150 260 195 35 140 140 140 196 1650 Overloaded Moves . | . . . . . . . . . . . . . . . . . . . . Propulsion Burnouts . | . . . . . . . . . . . . . . . . . . . . Robots Hopped 10 | . . . . . . . . . . . . . 3 5 2 . . . . Potential Cave-ins . | . . . . . . . . . . . . . . . . . . . . Cave-ins Triggered . | . . . . . . . . . . . . . . . . . . . . Exploration Rate (%) 33 | 4 34 10 26 17 37 9 79 24 86 8 45 4 62 12 86 5 89 5 26 Regions Visited 19 Branch Regions 4 Pre-discovered Areas 2 | . . . 2 . . . . . . . . . . . . . . . . Known Exits Taken 6 | . . . . . . 1 . 1 . 1 . 1 . 1 . 1 . . . Unknown Exits Taken 7 | 1 1 1 1 1 1 . . . . . . . . . . . . 1 . Scrap Searched 1 | . . . . . 1 . . . . . . . . . . . . . . Spaces Dug 24 | . . . . . . . 14 . 5 . 3 . . . . 1 . 1 . Terrain Destroyed 89 | . . . . . . . 14 . 5 . 3 . . . 2 2 4 54 5 Melee 22 | . . . . . . . 14 . 5 . 3 . . . . . . . . Projectile 34 | . . . . . . . . . . . . . . . 2 2 4 21 5 AOE 33 | . . . . . . . . . . . . . . . . . . 33 . Terrain Rammed . | . . . . . . . . . . . . . . . . . . . . Walls Destroyed . | . . . . . . . . . . . . . . . . . . . . Machines Disabled . | . . . . . . . . . . . . . . . . . . . . Actions | -11 -10 -9 -9 -9 -8 -8 -8 -8 -8 -7 -7 -6 -6 -5 -5 -4 -4 -4 -4 --------- Run | Yrd Mat Mat Min Exi Min Mat Gar Mat Gar Fac Gar Fac Gar Fac Gar Fac Gar Fac Arm Total 11621 | 43 117 108 164 137 199 289 2003 510 1817 246 936 301 1155 362 1191 156 1135 184 568 Wait 2298 | . . 23 20 . 58 155 485 122 365 3 224 30 360 75 163 12 49 . 154 Move 7983 | 39 105 72 132 137 131 111 1218 364 1302 227 587 212 672 258 874 135 910 140 357 Hop 9 | . . . . . . . . . . . . . 2 5 2 . . . . Pick Up 83 | . 7 4 1 . . 2 9 3 7 . 8 4 4 1 5 . 14 4 10 Fast Attach 129 | 4 1 4 6 . . 2 11 1 10 . 23 7 13 7 17 2 14 2 5 Attach 58 | . . . 1 . . 1 8 . 8 2 5 . 5 2 4 . 11 . 11 Detach 19 | . . . . . . . 2 . 3 1 . . 2 1 5 . 3 . 2 Swap 38 | . . . . . . . 5 . 3 . 2 1 10 . 4 . 12 . 1 Drop 93 | . . 4 . . . 1 11 4 9 . 10 5 12 . 14 . 19 1 3 Fire 319 | . . . . . . . . . 3 6 18 41 59 12 34 7 92 31 16 Melee 264 | . . . 4 . 10 17 91 16 71 2 53 . . . . . . . . Ram 9 | . 4 1 . . . . . . . 3 1 . . . . . . . . Kick 16 | . . . . . . . . . . . . 1 1 . . . 1 6 7 Crush 2 | . . . . . . . . . . . . . . . . . . . 2 Escape Stasis 201 | . . . . . . . 90 . 36 . 3 . 15 . 57 . . . . Rewire 87 | . . . . . . . 73 . . 2 2 . . . . . 10 . . Trap . | . . . . . . . . . . . . . . . . . . . . Miscellaneous 13 | . . . . . . . . . . . . . . 1 12 . . . . Route ------- -11/Scrapyard -10/Materials -9/Materials -9/Mines -9/Exiles -8/Mines -8/Materials (discovered 2 exits: [*Sto] / Gar) -8/Garrison (discovered 3 exits: *Mat x3) -8/Materials -8/Garrison (discovered 3 exits: *Fac x3) -7/Factory -7/Garrison -6/Factory -6/Garrison (discovered 2 exits: *Fac x2) -5/Factory -5/Garrison (discovered 3 exits: *Fac x3) -4/Factory -4/Garrison (discovered 3 exits: [*Fac x3]) -4/Factory -4/Armory History --------- Turn | Location | Event 34 | -11/Scrapyard | Discovered new exit (range 15) 64 | -11/Scrapyard | Entered Materials 158 | -10/Materials | Released all parts (5) 180 | -10/Materials | Discovered new exit (range 16) 181 | -10/Materials | Core integrity fell below 50% 185 | -10/Materials | Core integrity fell below 20% 188 | -10/Materials | Entered another Materials area 188 | -9/Materials | Evolved 2 slots: Utility x2 304 | -9/Materials | Build established: Mutant 424 | -9/Materials | Discovered new exit (range 11) 429 | -9/Materials | Entered Mines 430 | -9/Mines | Learned location of Storage (-8) 442 | -9/Mines | Lost 4 parts (4u) 457 | -9/Mines | Met a Derelict bent on vengeance 491 | -9/Mines | Joined a pair of Derelicts in attacking an 0b10 outpost 576 | -9/Mines | Deemed a non-threat by the Exiles lab entrance 576 | -9/Mines | Discovered new exit (range 5) 583 | -9/Mines | Entered Exiles 609 | -9/Exiles | Discovered new exit (range 15) 627 | -9/Exiles | Met 8R-AWN 649 | -9/Exiles | Met EX-HEX 803 | -9/Exiles | Entered Mines 919 | -8/Mines | Core integrity fell below 50% 1064 | -8/Mines | Discovered new exit (range 6) 1096 | -8/Mines | Entered Materials 1096 | -8/Materials | Evolved 2 slots: Propulsion x1, Utility x1 1459 | -8/Materials | Discovered new exit (range 11) 1475 | -8/Materials | Identified exit to Garrison 1477 | -8/Materials | Entered Garrison 1839 | -8/Garrison | Triggered checkpoint 1998 | -8/Garrison | Lost 5 parts (2n3u) 2012 | -8/Garrison | Rescued a captive Derelict 2013 | -8/Garrison | Rescued a captive Derelict 2095 | -8/Garrison | Triggered checkpoint 2298 | -8/Garrison | Discovered new exit (range 10) 2344 | -8/Garrison | Discovered new exit (range 31) 2344 | -8/Garrison | Discovered new exit (range 80) 2344 | -8/Garrison | Discovered new exit (range 7) 2505 | -8/Garrison | Triggered checkpoint 2689 | -8/Garrison | Triggered checkpoint 2749 | -8/Garrison | Triggered checkpoint 2795 | -8/Garrison | Lost 6 allies 2819 | -8/Garrison | Installed Relay Interface Framework 2881 | -8/Garrison | Triggered checkpoint 3019 | -8/Garrison | Triggered checkpoint 3066 | -8/Garrison | Build established: Scavenger-Sprinter 3163 | -8/Garrison | Triggered checkpoint 3238 | -8/Garrison | Expanded RIF knowledge: Patrol Navigation 3249 | -8/Garrison | Garrison Relay disabled 3261 | -8/Garrison | Garrison Relay disabled 3400 | -8/Garrison | Garrison Relay disabled 3472 | -8/Garrison | Identified exit to Materials 3477 | -8/Garrison | Entered Materials 3477 | -8/Materials | Accompanied by 4 allies 3639 | -8/Materials | Garrison activated, responded to threat 3644 | -8/Materials | Identified exit to Garrison 3744 | -8/Materials | Entered Garrison 3744 | -8/Garrison | Accompanied by 3 allies 3751 | -8/Garrison | Garrison Relay disabled 3790 | -8/Garrison | Garrison Relay disabled 3834 | -8/Garrison | Triggered checkpoint 3838 | -8/Garrison | Triggered checkpoint 4169 | -8/Garrison | Discovered new exit (range 12) 4173 | -8/Garrison | Identified exit to Factory 4354 | -8/Garrison | Spotted B-75 Beast 4355 | -8/Garrison | Spotted B-75 Beast 4561 | -8/Garrison | Core integrity fell below 50% 4694 | -8/Garrison | Garrison Relay disabled 4726 | -8/Garrison | Discovered exit to Factory (range 3) 4786 | -8/Garrison | Triggered checkpoint 4806 | -8/Garrison | Triggered checkpoint 4830 | -8/Garrison | Triggered checkpoint 4850 | -8/Garrison | Expanded RIF knowledge: Program Shield 4863 | -8/Garrison | Garrison Relay disabled 4874 | -8/Garrison | Triggered checkpoint 4901 | -8/Garrison | Discovered exit to Factory (range 8) 4916 | -8/Garrison | Entered Factory 4916 | -7/Factory | Evolved 2 slots: Utility x2 4976 | -7/Factory | Identified exit to Garrison 5059 | -7/Factory | Entered Garrison 5080 | -7/Garrison | Lost 8 parts (1p3n3u1w) 5281 | -7/Garrison | Garrison Relay disabled 5299 | -7/Garrison | Triggered checkpoint 5422 | -7/Garrison | Found embedded Infiltrators 5469 | -7/Garrison | Core integrity fell below 50% 5509 | -7/Garrison | System corruption reached 10% 5543 | -7/Garrison | Lost 8 parts (7u1w) 5757 | -7/Garrison | Triggered checkpoint 5947 | -7/Garrison | Triggered checkpoint 5984 | -7/Garrison | Expanded RIF knowledge: Structural Interface 5997 | -7/Garrison | Garrison Relay disabled 6082 | -7/Garrison | Discovered new exit (range 15) 6112 | -7/Garrison | Core integrity fell below 20% 6115 | -7/Garrison | Entered Factory 6115 | -6/Factory | Evolved 2 slots: Propulsion x1, Utility x1 6188 | -6/Factory | Identified exit to Garrison 6438 | -6/Factory | Garrison activated, responded to threat 6515 | -6/Factory | Entered Garrison 6515 | -6/Garrison | Accompanied by 5 allies 6626 | -6/Garrison | Found embedded Infiltrators 6718 | -6/Garrison | Triggered checkpoint 6773 | -6/Garrison | Build established: Bothacker-Mutant 6788 | -6/Garrison | Lost 3 parts (2n1u) 6792 | -6/Garrison | Lost 4 allies 6967 | -6/Garrison | System corruption reached 10% 7077 | -6/Garrison | Lost 6 parts (1p2n1u2w) 7284 | -6/Garrison | Expanded RIF knowledge: Hotswap 7288 | -6/Garrison | Garrison Relay disabled 7303 | -6/Garrison | Triggered checkpoint 7372 | -6/Garrison | Discovered new exit (range 8) 7459 | -6/Garrison | Spotted B-75 Beast 7467 | -6/Garrison | Found Relay Coupler [Proto] 7468 | -6/Garrison | Found Relay Coupler [Proto] 7470 | -6/Garrison | Found Relay Coupler [Proto] 7471 | -6/Garrison | Found Relay Coupler [Proto] 7480 | -6/Garrison | Discovered new exit (range 8) 7496 | -6/Garrison | Entered Factory 7496 | -5/Factory | Evolved 2 slots: Utility x2 7519 | -5/Factory | Lost 5 parts (1p3u1w) 7555 | -5/Factory | Build established: Botlord-Sprinter 7597 | -5/Factory | Fabricated Imp. Plasma Cutter (x2) 7619 | -5/Factory | Found Prototype Processor 7619 | -5/Factory | Identified Exp. Targeting Computer 7630 | -5/Factory | Spotted B-75 Beast 7684 | -5/Factory | Identified exit to Garrison 7691 | -5/Factory | Entered Garrison 7783 | -5/Garrison | Spotted B-75 Beast 7943 | -5/Garrison | Triggered checkpoint 7951 | -5/Garrison | Discovered new exit (range 12) 7955 | -5/Garrison | Expanded RIF knowledge: Command Fork 7959 | -5/Garrison | Triggered checkpoint 7967 | -5/Garrison | Garrison Relay disabled 8000 | -5/Garrison | Spotted Striker 8000 | -5/Garrison | Spotted Striker 8002 | -5/Garrison | Rewired Striker 8005 | -5/Garrison | Rewired Striker 8013 | -5/Garrison | Assimilated Striker with formatsys_high 8030 | -5/Garrison | Allies destroyed Striker 8063 | -5/Garrison | Triggered checkpoint 8104 | -5/Garrison | Discovered new exit (range 29) 8104 | -5/Garrison | Discovered new exit (range 20) 8104 | -5/Garrison | Discovered new exit (range 65) 8118 | -5/Garrison | Spotted B-75 Beast 8134 | -5/Garrison | Allies destroyed B-75 Beast 8336 | -5/Garrison | Build established: Botlord-Mutant 8553 | -5/Garrison | Triggered checkpoint 8576 | -5/Garrison | Garrison Relay disabled 8678 | -5/Garrison | Garrison Relay disabled 8684 | -5/Garrison | Garrison Relay disabled 8818 | -5/Garrison | Entered Factory 8818 | -4/Factory | Accompanied by 7 allies 8818 | -4/Factory | Evolved 2 slots: Utility x2 9026 | -4/Factory | Identified exit to Garrison 9034 | -4/Factory | Entered Garrison 9034 | -4/Garrison | Accompanied by 6 allies 9050 | -4/Garrison | Allies destroyed Striker 9088 | -4/Garrison | Lost 6 allies 9102 | -4/Garrison | Destroyed 7 combat bots 9392 | -4/Garrison | Triggered checkpoint 9415 | -4/Garrison | Garrison Relay disabled 9472 | -4/Garrison | Spotted B-86 Titan 9496 | -4/Garrison | Triggered checkpoint 9500 | -4/Garrison | Triggered checkpoint 9508 | -4/Garrison | Allies destroyed B-86 Titan 9541 | -4/Garrison | Lost 4 allies 9564 | -4/Garrison | Lost 3 parts (2u1w) 9624 | -4/Garrison | Triggered checkpoint 9699 | -4/Garrison | Lost 3 parts (3u) 9774 | -4/Garrison | Triggered checkpoint 9775 | -4/Garrison | Discovered new exit (range 13) 9994 | -4/Garrison | Triggered checkpoint 10029 | -4/Garrison | Build established: Mutant 10039 | -4/Garrison | Garrison Relay disabled 10075 | -4/Garrison | Discovered new exit (range 3) 10247 | -4/Garrison | Expanded RIF knowledge: Autooverride 10369 | -4/Garrison | Discovered new exit (range 11) 10374 | -4/Garrison | Triggered checkpoint 10384 | -4/Garrison | Garrison Relay disabled 10460 | -4/Garrison | Triggered checkpoint 10483 | -4/Garrison | Entered Factory 10684 | -4/Factory | Lost 3 parts (1p1n1u) 10733 | -4/Factory | First assault squad dispatched 10820 | -4/Factory | Discovered new exit (range 9) 10838 | -4/Factory | Entered Armory 10845 | -4/Armory | System corruption reached 10% 10863 | -4/Armory | Lost 4 parts (2u2w) 10899 | -4/Armory | Found Adv. Force Booster 11014 | -4/Armory | Fabricated Biometal Heavy Treads (x1) 11059 | -4/Armory | Core integrity fell below 50% 11257 | -4/Armory | Lost 3 parts (1n2u) 11475 | -4/Armory | Build established: Botlord-Mutant 11503 | -4/Armory | Core integrity fell below 20% 11554 | -4/Armory | Released all parts (13) 11564 | -4/Armory | Destroyed by H-77 Assassin with Coil Gun Last Messages --------------- 11541_ Penetrated by Slug. 11544_ Slug penetrates Wall. 11551_ Penetrated by Slug. 11551_ Biometal Heavy Treads destroyed. 11554_ Released Rnf. Fission Core. 11554_ Released Graphene Brace. 11554_ Released Huge Storage Unit. 11554_ Released Relay Coupler [Specialist]. 11554_ Released Relay Coupler [Grunt]. 11554_ Released Relay Coupler [Duelist]. 11554_ Released Energy Well. 11554_ Released Relay Coupler [Cutter]. 11554_ Released Relay Coupler [Behemoth]. 11554_ Released Biometal Heavy Treads. 11554_ Released Adv. Cooling System. 11554_ Released Enh. Quantum Rifle. 11554_ Released Adv. Signal Interpreter. 11555_ 6SVN493MV:X9>VB&C CYV8/E Y,O1DBA3JKMCZH 11559_ Penetrated by Slug. 11561_ Slug penetrates Wall. Map ----- +----------------------------------------------------+ | ?????????????????????????????????????????????????? | | ?????????????????????????????????????????????????? | | ?????????????????????????????????????????????????? | | ?????????????????????????????????????????????????? | | ?????????????????????????????????????????????????? | | ?????????????????????????????????????????????????? | | ???????????????????????????#########?????######### | | ???????????????????????????# #?????# | | ???????????????????????????# #?????# | | ???????????????????????????# #?????# !! !! | | ???????????????????????????# ####### !! !! | | ???????????????????????????# + / !! !! | | ???????????????????????????# """" ####### = | | ????????????????????????????????" #???#?# % | | ????????????????????????????????" ####"#######+## | | ????????????????????????????????" / | | ????????????????????????????????" # % | | ?????????????????????????????? ##### ##+### | | ??????????????????####?????# #???# #????? | | ????????????###+### ????# #???#!=% #????? | | ????????????? ????# #???#![ #????? | | ?????????????? ???# #???#*!! #????? | | ???????????????""" ???# #???#=![ #????? | | ???????????????""" ??# ????#!! #????? | | ?????????????""""" ########;###### #????? | | ?????????? @ p #????? | | ?????????? p #????? | | ????????????"""""" #????? | | ???????????????""" #????? | | ???????????????""" ##????? | | ??????????????? h #?????? | | ????????????? #################"H #?????? | | ?????????????""""" ?????????????????# #?????? | | ??????????????"""" h ?????????????????? #?????? | | ????????????????"" ??????????????????? ?????? | | ???????????????? ??????????????????? #????? | | ???????????????? ???????????????????? +????? | | ???????????????######???????????????????? #????? | | ????????????????????????????????????????? ##????? | | ????????????????????????????????????????? #?????? | | ?????????????????????????????????????????? ??????? | | ?????????????????????????????????????????????????? | | ?????????????????????????????????????????????????? | | ?????????????????????????????????????????????????? | | ?????????????????????????????????????????????????? | | ?????????????????????????????????????????????????? | | ?????????????????????????????????????????????????? | | ?????????????????????????????????????????????????? | | ?????????????????????????????????????????????????? | | ?????????????????????????????????????????????????? | +----------------------------------------------------+ Best States ------------- Heat Dissipation 74 Energy Generation 25 Energy Capacity 1100 Matter Stores 300 Matter Capacity 300 Sight Range 16 Robot Scan Range 15 Terrain Scan Density 10 Armor Coverage 900 Resistance: TH 20 Core Shielding 20 Propulsion Shielding 33 Weapon Shielding 66 Melee Speed Boost 40 Phase Shifting 15 Evasion (%) 64 Targeting Accuracy 12 Melee Accuracy 32 Launcher Accuracy 20 Target Analysis 12 Core Analysis 6 Recoil Reduction 4 Offensive Hacking 10 Relay Coupler Types 9 Relay Coupler Value 224 Item Schematics ----------------- None Robot Schematics ------------------ H-66 Slayer | -6/Factory | Hacked Fabricated ------------ Imp. Plasma Cutter | x2 | -5/Factory | Preloaded Biometal Heavy Treads | x1 | -4/Armory | Preloaded Repaired ---------- Nothing Studied --------- Cesium-ion Thruster | -8/Materials | Hacked Hvy. Flail | -8/Materials | Hacked Alien Tech Used ----------------- None Achievements -------------- Botjacking Hackerman Powerful Protocols Challenges ------------ None Game ------ Seed BarrageShockboltBay Manual? 0 Play Time 01:52:19 Cumulative 487.5 hours Start 2025.10.28 @ 12:56:20 End 2025.10.28 @ 16:10:58 Sessions 1 Manual Loads 0 Difficulty Rogue Special Mode None Game No. 818 Rogue 663 Adventurer 148 Explorer 7 Win Type - Total 24 Types 19/1/3/1/0/0/0/0/0/0 Lore% 71 Gallery% 77 Achievement% 58 Wizard Run 0 Options --------- Layout 1 ASCII 0 Keyboard 0 Movement Numpad Keybinds 0 Fullscreen 2 Font 24/Smallcaps Map View 50x35 Zoom Use 0% Tactical HUD 1 Map Filters NONE Filters NONE Steam 1 RUN: 3042455e-e394-4e4f-a00b-8f60510c4a15